[Event "Titled Tuesday Blitz April 05 Late 2022"]
[White "P., Komal Kishore"]
[Black "Petrova, Irina"]
[WhiteFideId "5016703"]
[BlackFideId "14124122"]
[WhiteElo "2075"]
[BlackElo "1993"]
[Result "1-0"]
[Round "04"]
[TimeControl "180+1"]
[Date "2022.04.06"]
[WhiteClock "0:00:04"]
[BlackClock "0:00:13"]

1. e4 {[%clk 0:03:00]}  d6 {[%clk 0:03:00]} 2. d4 {[%clk 0:02:58]}  Nf6 {[%clk 0:03:01]} 3. Nc3 {[%clk 0:02:55]}  e5 {[%clk 0:03:01]} 4. dxe5 {[%clk 0:02:54]}  dxe5 {[%clk 0:03:02]} 5. Qxd8+ {[%clk 0:02:54]}  Kxd8 {[%clk 0:03:03]} 6. Bc4 {[%clk 0:02:51]}  Ke8 {[%clk 0:03:03]} 7. Nf3 {[%clk 0:02:45]}  Bd6 {[%clk 0:03:03]} 8. Ng5 {[%clk 0:02:43]}  Rf8 {[%clk 0:03:02]} 9. O-O {[%clk 0:02:37]}  a6 {[%clk 0:03:02]} 10. f4 {[%clk 0:02:35]}  b5 {[%clk 0:02:54]} 11. fxe5 {[%clk 0:02:13]}  Bc5+ {[%clk 0:02:25]} 12. Kh1 {[%clk 0:02:11]}  Ng4 {[%clk 0:02:16]} 13. Bxf7+ {[%clk 0:01:56]}  Rxf7 {[%clk 0:02:12]} 14. Rxf7 {[%clk 0:01:51]}  h6 {[%clk 0:01:59]} 15. Rxc7 {[%clk 0:01:49]}  Nd7 {[%clk 0:01:40]} 16. Ne6 {[%clk 0:01:37]}  Bb6 {[%clk 0:01:33]} 17. Rc6 {[%clk 0:01:21]}  Bb7 {[%clk 0:01:14]} 18. Rxb6 {[%clk 0:01:20]}  Nxb6 {[%clk 0:01:13]} 19. Nc7+ {[%clk 0:01:20]}  Ke7 {[%clk 0:01:12]} 20. Nxa8 {[%clk 0:01:20]}  Bxa8 {[%clk 0:01:12]} 21. Bf4 {[%clk 0:01:17]}  Nc4 {[%clk 0:01:08]} 22. Nd5+ {[%clk 0:01:12]}  Bxd5 {[%clk 0:00:59]} 23. exd5 {[%clk 0:01:11]}  g5 {[%clk 0:00:51]} 24. Bg3 {[%clk 0:01:07]}  Nge3 {[%clk 0:00:30]} 25. d6+ {[%clk 0:00:59]}  Ke6 {[%clk 0:00:31]} 26. Re1 {[%clk 0:00:53]}  Nxc2 {[%clk 0:00:27]} 27. Re2 {[%clk 0:00:45]}  Nd4 {[%clk 0:00:25]} 28. Re4 {[%clk 0:00:44]}  Nf5 {[%clk 0:00:25]} 29. b3 {[%clk 0:00:40]}  Nb6 {[%clk 0:00:21]} 30. Bf2 {[%clk 0:00:39]}  Nd7 {[%clk 0:00:20]} 31. g4 {[%clk 0:00:37]}  Ng7 {[%clk 0:00:18]} 32. Bd4 {[%clk 0:00:37]}  Ne8 {[%clk 0:00:17]} 33. Kg2 {[%clk 0:00:36]}  Ng7 {[%clk 0:00:15]} 34. Kg3 {[%clk 0:00:35]}  Ne8 {[%clk 0:00:15]} 35. h4 {[%clk 0:00:34]}  Ng7 {[%clk 0:00:15]} 36. hxg5 {[%clk 0:00:33]}  hxg5 {[%clk 0:00:16]} 37. Kf3 {[%clk 0:00:32]}  Kd5 {[%clk 0:00:16]} 38. Ke3 {[%clk 0:00:32]}  Ne6 {[%clk 0:00:16]} 39. Kd3 {[%clk 0:00:30]}  Nxd4 {[%clk 0:00:15]} 40. Rxd4+ {[%clk 0:00:29]}  Kxe5 {[%clk 0:00:16]} 41. a4 {[%clk 0:00:28]}  Nc5+ {[%clk 0:00:14]} 42. Kc3 {[%clk 0:00:26]}  Nd7 {[%clk 0:00:14]} 43. axb5 {[%clk 0:00:25]}  axb5 {[%clk 0:00:14]} 44. Rb4 {[%clk 0:00:25]}  Kxd6 {[%clk 0:00:13]} 45. Rxb5 {[%clk 0:00:24]}  Ne5 {[%clk 0:00:11]} 46. Rxe5 {[%clk 0:00:23]}  Kxe5 {[%clk 0:00:12]} 47. b4 {[%clk 0:00:21]}  Kf4 {[%clk 0:00:12]} 48. b5 {[%clk 0:00:21]}  Kxg4 {[%clk 0:00:13]} 49. b6 {[%clk 0:00:21]}  Kf3 {[%clk 0:00:14]} 50. b7 {[%clk 0:00:21]}  g4 {[%clk 0:00:15]} 51. b8=Q {[%clk 0:00:20]}  g3 {[%clk 0:00:15]} 52. Qf8+ {[%clk 0:00:19]}  Ke2 {[%clk 0:00:15]} 53. Qe7+ {[%clk 0:00:18]}  Kf1 {[%clk 0:00:15]} 54. Qf6+ {[%clk 0:00:17]}  Kg1 {[%clk 0:00:15]} 55. Qf3 {[%clk 0:00:13]}  g2 {[%clk 0:00:16]} 56. Kd2 {[%clk 0:00:12]}  Kh2 {[%clk 0:00:16]} 57. Qf2 {[%clk 0:00:11]}  Kh1 {[%clk 0:00:15]} 58. Qh4+ {[%clk 0:00:10]}  Kg1 {[%clk 0:00:16]} 59. Ke3 {[%clk 0:00:10]}  Kf1 {[%clk 0:00:16]} 60. Qh3 {[%clk 0:00:09]}  Kg1 {[%clk 0:00:14]} 61. Qg3 {[%clk 0:00:06]}  Kh1 {[%clk 0:00:13]} 62. Kf2 {[%clk 0:00:04]} 1-0


[Site "https://www.chess.com"]

[Event "Titled Tuesday Blitz April 05 Late 2022"]
[White "Pavlidou, Ekaterini"]
[Black "Kozak, Antoni"]
[WhiteFideId "4213262"]
[BlackFideId "21832030"]
[WhiteElo "2374"]
[BlackElo "2615"]
[Result "0-1"]
[Round "04"]
[TimeControl "180+1"]
[Date "2022.04.06"]
[WhiteClock "0:00:19"]
[BlackClock "0:00:17"]

1. d4 {[%clk 0:02:49]}  d5 {[%clk 0:02:59]} 2. c4 {[%clk 0:02:49]}  e6 {[%clk 0:02:59]} 3. Nf3 {[%clk 0:02:49]}  Nf6 {[%clk 0:02:59]} 4. Bg5 {[%clk 0:02:49]}  dxc4 {[%clk 0:02:59]} 5. e3 {[%clk 0:02:44]}  b5 {[%clk 0:02:55]} 6. a4 {[%clk 0:02:33]}  c6 {[%clk 0:02:55]} 7. Ne5 {[%clk 0:02:32]}  Bb7 {[%clk 0:02:44]} 8. b3 {[%clk 0:02:30]}  Bb4+ {[%clk 0:02:40]} 9. Ke2 {[%clk 0:02:28]}  cxb3 {[%clk 0:02:32]} 10. Qxb3 {[%clk 0:02:27]}  a5 {[%clk 0:02:30]} 11. Kd1 {[%clk 0:02:21]}  bxa4 {[%clk 0:02:27]} 12. Rxa4 {[%clk 0:02:19]}  O-O {[%clk 0:02:23]} 13. Bc4 {[%clk 0:02:18]}  c5 {[%clk 0:02:21]} 14. Ke2 {[%clk 0:02:14]}  Nc6 {[%clk 0:02:16]} 15. f4 {[%clk 0:02:07]}  cxd4 {[%clk 0:02:13]} 16. Rd1 {[%clk 0:02:07]}  Qc7 {[%clk 0:02:07]} 17. exd4 {[%clk 0:01:58]}  Ne4 {[%clk 0:01:58]} 18. Bh4 {[%clk 0:01:54]}  Nxe5 {[%clk 0:01:50]} 19. fxe5 {[%clk 0:01:49]}  Rab8 {[%clk 0:01:28]} 20. Bd3 {[%clk 0:01:46]}  Bc6 {[%clk 0:01:23]} 21. Ra2 {[%clk 0:01:37]}  Be7 {[%clk 0:01:21]} 22. Qc2 {[%clk 0:01:37]}  Bxh4 {[%clk 0:01:14]} 23. Bxe4 {[%clk 0:01:35]}  Bb5+ {[%clk 0:01:14]} 24. Kf3 {[%clk 0:01:34]}  Qe7 {[%clk 0:01:02]} 25. Bxh7+ {[%clk 0:01:33]}  Kh8 {[%clk 0:01:02]} 26. g3 {[%clk 0:01:21]}  Bg5 {[%clk 0:01:00]} 27. h4 {[%clk 0:01:19]}  Bh6 {[%clk 0:01:00]} 28. Bd3 {[%clk 0:01:16]}  f6 {[%clk 0:00:55]} 29. Kg2 {[%clk 0:01:13]}  fxe5 {[%clk 0:00:55]} 30. dxe5 {[%clk 0:01:12]}  Bxd3 {[%clk 0:00:54]} 31. Qxd3 {[%clk 0:01:08]}  Rfd8 {[%clk 0:00:52]} 32. Qe2 {[%clk 0:01:08]}  Rxd1 {[%clk 0:00:51]} 33. Qxd1 {[%clk 0:01:07]}  Qb7+ {[%clk 0:00:52]} 34. Qf3 {[%clk 0:00:56]}  Qxf3+ {[%clk 0:00:35]} 35. Kxf3 {[%clk 0:00:55]}  Rxb1 {[%clk 0:00:32]} 36. Rxa5 {[%clk 0:00:55]}  Re1 {[%clk 0:00:30]} 37. g4 {[%clk 0:00:53]}  Bd2 {[%clk 0:00:29]} 38. Rb5 {[%clk 0:00:52]}  Bc3 {[%clk 0:00:29]} 39. Kf4 {[%clk 0:00:51]}  Bd2+ {[%clk 0:00:23]} 40. Kf3 {[%clk 0:00:50]}  Kh7 {[%clk 0:00:23]} 41. g5 {[%clk 0:00:50]}  Kg6 {[%clk 0:00:22]} 42. Kg4 {[%clk 0:00:49]}  Re4+ {[%clk 0:00:22]} 43. Kf3 {[%clk 0:00:46]}  Rxh4 {[%clk 0:00:20]} 44. Rb6 {[%clk 0:00:45]}  Kf5 {[%clk 0:00:20]} 45. Rb7 {[%clk 0:00:45]}  g6 {[%clk 0:00:20]} 46. Rf7+ {[%clk 0:00:44]}  Kxe5 {[%clk 0:00:20]} 47. Rf6 {[%clk 0:00:44]}  Bxg5 {[%clk 0:00:19]} 48. Rxg6 {[%clk 0:00:45]}  Rf4+ {[%clk 0:00:19]} 49. Kg3 {[%clk 0:00:44]}  Kf5 {[%clk 0:00:19]} 50. Rg8 {[%clk 0:00:44]}  e5 {[%clk 0:00:19]} 51. Rf8+ {[%clk 0:00:43]}  Bf6 {[%clk 0:00:20]} 52. Rf7 {[%clk 0:00:41]}  Ra4 {[%clk 0:00:19]} 53. Kf2 {[%clk 0:00:41]}  Ra3 {[%clk 0:00:20]} 54. Rf8 {[%clk 0:00:38]}  e4 {[%clk 0:00:20]} 55. Ke2 {[%clk 0:00:38]}  Ke5 {[%clk 0:00:20]} 56. Re8+ {[%clk 0:00:38]}  Kf4 {[%clk 0:00:20]} 57. Rf8 {[%clk 0:00:38]}  Ra2+ {[%clk 0:00:21]} 58. Kf1 {[%clk 0:00:37]}  Ke5 {[%clk 0:00:19]} 59. Re8+ {[%clk 0:00:36]}  Kf5 {[%clk 0:00:19]} 60. Rf8 {[%clk 0:00:36]}  e3 {[%clk 0:00:19]} 61. Ke1 {[%clk 0:00:35]}  Ke5 {[%clk 0:00:18]} 62. Re8+ {[%clk 0:00:34]}  Kd4 {[%clk 0:00:19]} 63. Re6 {[%clk 0:00:33]}  Be5 {[%clk 0:00:18]} 64. Re8 {[%clk 0:00:31]}  Kd3 {[%clk 0:00:18]} 65. Rd8+ {[%clk 0:00:31]}  Bd4 {[%clk 0:00:18]} 66. Re8 {[%clk 0:00:19]}  Ra1# {[%clk 0:00:17]} 0-1


[Site "https://www.chess.com"]

[Event "Titled Tuesday Blitz April 05 Late 2022"]
[White "Piesik, Piotr"]
[Black "Pesotskiy, Mikhail"]
[WhiteFideId "1136194"]
[BlackFideId "34164453"]
[WhiteElo "2634"]
[BlackElo "2458"]
[Result "1-0"]
[Round "04"]
[TimeControl "180+1"]
[Date "2022.04.06"]
[WhiteClock "0:00:18"]
[BlackClock "0:00:15"]

1. Nf3 {[%clk 0:02:57]}  Nf6 {[%clk 0:03:00]} 2. g3 {[%clk 0:02:57]}  b6 {[%clk 0:03:00]} 3. Bg2 {[%clk 0:02:58]}  Bb7 {[%clk 0:03:01]} 4. O-O {[%clk 0:02:59]}  e6 {[%clk 0:03:02]} 5. c4 {[%clk 0:02:59]}  Be7 {[%clk 0:03:03]} 6. Nc3 {[%clk 0:03:00]}  O-O {[%clk 0:03:04]} 7. d3 {[%clk 0:03:00]}  c5 {[%clk 0:03:03]} 8. e4 {[%clk 0:03:00]}  d6 {[%clk 0:03:00]} 9. Ne1 {[%clk 0:02:59]}  Nc6 {[%clk 0:02:53]} 10. f4 {[%clk 0:02:57]}  Nd4 {[%clk 0:02:53]} 11. Nc2 {[%clk 0:02:56]}  Nd7 {[%clk 0:02:43]} 12. Ne2 {[%clk 0:02:55]}  e5 {[%clk 0:02:30]} 13. Ne3 {[%clk 0:02:52]}  a6 {[%clk 0:02:21]} 14. Bh3 {[%clk 0:02:48]}  b5 {[%clk 0:02:18]} 15. b3 {[%clk 0:02:48]}  a5 {[%clk 0:01:54]} 16. Nxd4 {[%clk 0:02:44]}  cxd4 {[%clk 0:01:52]} 17. Nf5 {[%clk 0:02:38]}  bxc4 {[%clk 0:01:48]} 18. bxc4 {[%clk 0:02:34]}  Nc5 {[%clk 0:01:44]} 19. Ba3 {[%clk 0:02:34]}  Bc8 {[%clk 0:01:42]} 20. Rb1 {[%clk 0:02:26]}  Bxf5 {[%clk 0:01:41]} 21. Bxf5 {[%clk 0:02:25]}  Qc7 {[%clk 0:01:40]} 22. Bxc5 {[%clk 0:02:17]}  dxc5 {[%clk 0:01:34]} 23. Rb5 {[%clk 0:02:15]}  Rfb8 {[%clk 0:01:25]} 24. fxe5 {[%clk 0:02:15]}  Qxe5 {[%clk 0:01:16]} 25. Qb3 {[%clk 0:02:12]}  Rxb5 {[%clk 0:01:16]} 26. cxb5 {[%clk 0:02:13]}  g6 {[%clk 0:01:02]} 27. Bd7 {[%clk 0:01:54]}  Rf8 {[%clk 0:01:01]} 28. b6 {[%clk 0:01:50]}  Bg5 {[%clk 0:00:53]} 29. b7 {[%clk 0:01:46]}  Be3+ {[%clk 0:00:51]} 30. Kg2 {[%clk 0:01:45]}  Qh5 {[%clk 0:00:50]} 31. Rf3 {[%clk 0:01:45]}  c4 {[%clk 0:00:40]} 32. Qxc4 {[%clk 0:01:42]}  Qe5 {[%clk 0:00:39]} 33. Bc6 {[%clk 0:01:30]}  Kg7 {[%clk 0:00:39]} 34. Bd5 {[%clk 0:01:27]}  f6 {[%clk 0:00:36]} 35. Rf1 {[%clk 0:01:18]}  Qh5 {[%clk 0:00:34]} 36. Qc2 {[%clk 0:01:18]}  f5 {[%clk 0:00:24]} 37. exf5 {[%clk 0:00:58]}  Rxf5 {[%clk 0:00:22]} 38. Rxf5 {[%clk 0:00:43]}  Qxf5 {[%clk 0:00:23]} 39. Be4 {[%clk 0:00:32]}  Qf8 {[%clk 0:00:16]} 40. Bf3 {[%clk 0:00:21]}  Kh6 {[%clk 0:00:15]} 41. Qc8 {[%clk 0:00:18]} 1-0


[Site "https://www.chess.com"]

[Event "Titled Tuesday Blitz April 05 Late 2022"]
[White "Pinheiro, Iung Alicio de O."]
[Black "Kosteniuk, Alexandra"]
[WhiteFideId "2104350"]
[BlackFideId "4128125"]
[WhiteElo "2550"]
[BlackElo "2685"]
[Result "1-0"]
[Round "04"]
[TimeControl "180+1"]
[Date "2022.04.06"]
[WhiteClock "0:00:14"]
[BlackClock "0:00:09"]

1. c4 {[%clk 0:02:59]}  e5 {[%clk 0:02:59]} 2. g3 {[%clk 0:02:58]}  Nf6 {[%clk 0:02:59]} 3. Bg2 {[%clk 0:02:59]}  d5 {[%clk 0:03:00]} 4. cxd5 {[%clk 0:02:59]}  Nxd5 {[%clk 0:03:01]} 5. Nf3 {[%clk 0:02:58]}  Nc6 {[%clk 0:03:01]} 6. O-O {[%clk 0:02:58]}  Nb6 {[%clk 0:03:00]} 7. d3 {[%clk 0:02:57]}  Be7 {[%clk 0:03:00]} 8. Nbd2 {[%clk 0:02:56]}  O-O {[%clk 0:02:59]} 9. a3 {[%clk 0:02:56]}  Be6 {[%clk 0:02:55]} 10. b4 {[%clk 0:02:55]}  a5 {[%clk 0:02:55]} 11. b5 {[%clk 0:02:48]}  Nd4 {[%clk 0:02:56]} 12. Bb2 {[%clk 0:02:14]}  Nxf3+ {[%clk 0:02:49]} 13. Nxf3 {[%clk 0:02:03]}  f6 {[%clk 0:02:49]} 14. a4 {[%clk 0:01:35]}  Bd5 {[%clk 0:02:47]} 15. Qc2 {[%clk 0:01:34]}  Rc8 {[%clk 0:02:47]} 16. e4 {[%clk 0:01:31]}  Be6 {[%clk 0:02:43]} 17. d4 {[%clk 0:01:31]}  c6 {[%clk 0:02:35]} 18. bxc6 {[%clk 0:01:05]}  Rxc6 {[%clk 0:02:34]} 19. Qb1 {[%clk 0:01:05]}  Bc4 {[%clk 0:02:33]} 20. Rd1 {[%clk 0:01:04]}  exd4 {[%clk 0:02:32]} 21. Nxd4 {[%clk 0:01:04]}  Rd6 {[%clk 0:02:32]} 22. Nf5 {[%clk 0:01:03]}  Rxd1+ {[%clk 0:02:32]} 23. Qxd1 {[%clk 0:01:04]}  Qxd1+ {[%clk 0:02:31]} 24. Rxd1 {[%clk 0:01:04]}  Bb4 {[%clk 0:02:30]} 25. Rc1 {[%clk 0:00:43]}  Rc8 {[%clk 0:02:21]} 26. Bh3 {[%clk 0:00:38]}  Rd8 {[%clk 0:02:04]} 27. e5 {[%clk 0:00:36]}  fxe5 {[%clk 0:01:52]} 28. Bxe5 {[%clk 0:00:36]}  Bf8 {[%clk 0:01:39]} 29. Bc7 {[%clk 0:00:36]}  Re8 {[%clk 0:01:06]} 30. Bxb6 {[%clk 0:00:35]}  Bb3 {[%clk 0:01:06]} 31. Bxa5 {[%clk 0:00:32]}  Bxa4 {[%clk 0:01:05]} 32. Bc3 {[%clk 0:00:32]}  Bc6 {[%clk 0:01:03]} 33. Nd4 {[%clk 0:00:32]}  Bd5 {[%clk 0:01:02]} 34. Bg2 {[%clk 0:00:30]}  Bxg2 {[%clk 0:01:02]} 35. Kxg2 {[%clk 0:00:31]}  Bc5 {[%clk 0:01:01]} 36. Nb3 {[%clk 0:00:30]}  Ba7 {[%clk 0:01:00]} 37. Bd4 {[%clk 0:00:30]}  Bb8 {[%clk 0:01:00]} 38. Be3 {[%clk 0:00:29]}  Bd6 {[%clk 0:00:59]} 39. Rd1 {[%clk 0:00:28]}  Bf8 {[%clk 0:00:56]} 40. Rd7 {[%clk 0:00:28]}  b5 {[%clk 0:00:55]} 41. Rb7 {[%clk 0:00:28]}  Re5 {[%clk 0:00:55]} 42. Nd4 {[%clk 0:00:28]}  b4 {[%clk 0:00:55]} 43. Nc6 {[%clk 0:00:29]}  Re4 {[%clk 0:00:56]} 44. Kf3 {[%clk 0:00:27]}  Rc4 {[%clk 0:00:56]} 45. Ne5 {[%clk 0:00:27]}  Rc8 {[%clk 0:00:54]} 46. Nd7 {[%clk 0:00:27]}  Bd6 {[%clk 0:00:53]} 47. Bd4 {[%clk 0:00:28]}  Rc7 {[%clk 0:00:50]} 48. Rb8+ {[%clk 0:00:22]}  Kf7 {[%clk 0:00:50]} 49. Nb6 {[%clk 0:00:22]}  Re7 {[%clk 0:00:33]} 50. Rd8 {[%clk 0:00:19]}  Bc7 {[%clk 0:00:34]} 51. Rd5 {[%clk 0:00:20]}  g6 {[%clk 0:00:28]} 52. Rb5 {[%clk 0:00:20]}  Bd6 {[%clk 0:00:28]} 53. Be3 {[%clk 0:00:20]}  Rb7 {[%clk 0:00:26]} 54. Rd5 {[%clk 0:00:20]}  Be7 {[%clk 0:00:25]} 55. Nc8 {[%clk 0:00:18]}  Ke6 {[%clk 0:00:23]} 56. Nxe7 {[%clk 0:00:17]}  Kxe7 {[%clk 0:00:21]} 57. Re5+ {[%clk 0:00:16]}  Kd6 {[%clk 0:00:21]} 58. Ra5 {[%clk 0:00:16]}  b3 {[%clk 0:00:20]} 59. Ra1 {[%clk 0:00:17]}  Kd5 {[%clk 0:00:20]} 60. Rb1 {[%clk 0:00:17]}  Kc4 {[%clk 0:00:21]} 61. Ke2 {[%clk 0:00:18]}  Kc3 {[%clk 0:00:21]} 62. Bg5 {[%clk 0:00:13]}  Kc2 {[%clk 0:00:19]} 63. Rc1+ {[%clk 0:00:13]}  Kb2 {[%clk 0:00:19]} 64. Rc8 {[%clk 0:00:13]}  Ka2 {[%clk 0:00:18]} 65. Ra8+ {[%clk 0:00:13]}  Kb1 {[%clk 0:00:18]} 66. Bf6 {[%clk 0:00:14]}  b2 {[%clk 0:00:19]} 67. g4 {[%clk 0:00:14]}  Kc2 {[%clk 0:00:18]} 68. Rc8+ {[%clk 0:00:13]}  Kb3 {[%clk 0:00:18]} 69. Bxb2 {[%clk 0:00:12]}  Kxb2 {[%clk 0:00:19]} 70. Ke3 {[%clk 0:00:13]}  Rf7 {[%clk 0:00:16]} 71. f4 {[%clk 0:00:13]}  Kb3 {[%clk 0:00:17]} 72. h4 {[%clk 0:00:13]}  Kb4 {[%clk 0:00:17]} 73. Ke4 {[%clk 0:00:13]}  Kb5 {[%clk 0:00:17]} 74. f5 {[%clk 0:00:13]}  gxf5+ {[%clk 0:00:16]} 75. gxf5 {[%clk 0:00:14]}  Kb6 {[%clk 0:00:17]} 76. Ke5 {[%clk 0:00:15]}  Kb7 {[%clk 0:00:17]} 77. Rc1 {[%clk 0:00:15]}  Re7+ {[%clk 0:00:16]} 78. Kf6 {[%clk 0:00:15]}  Re4 {[%clk 0:00:17]} 79. h5 {[%clk 0:00:14]}  Rg4 {[%clk 0:00:13]} 80. h6 {[%clk 0:00:13]}  Rg3 {[%clk 0:00:11]} 81. Kf7 {[%clk 0:00:13]}  Rg5 {[%clk 0:00:11]} 82. f6 {[%clk 0:00:13]}  Rg6 {[%clk 0:00:11]} 83. Ke7 {[%clk 0:00:13]}  Rxh6 {[%clk 0:00:09]} 84. f7 {[%clk 0:00:14]} 1-0


[Site "https://www.chess.com"]

[Event "Titled Tuesday Blitz April 05 Late 2022"]
[White "Prohorov, Olexandr"]
[Black "Ashiev, Eduard"]
[WhiteFideId "14105578"]
[BlackFideId "4130090"]
[WhiteElo "1993"]
[BlackElo "2004"]
[Result "0-1"]
[Round "04"]
[TimeControl "180+1"]
[Date "2022.04.06"]
[WhiteClock "0:00:02"]
[BlackClock "0:00:03"]

1. e4 {[%clk 0:02:54]}  e5 {[%clk 0:02:59]} 2. Nf3 {[%clk 0:02:47]}  Nc6 {[%clk 0:02:59]} 3. c3 {[%clk 0:02:41]}  Nf6 {[%clk 0:02:57]} 4. d4 {[%clk 0:02:39]}  exd4 {[%clk 0:02:57]} 5. e5 {[%clk 0:02:39]}  Nd5 {[%clk 0:02:57]} 6. cxd4 {[%clk 0:02:39]}  d6 {[%clk 0:02:56]} 7. exd6 {[%clk 0:02:29]}  Bxd6 {[%clk 0:02:55]} 8. Bd3 {[%clk 0:02:30]}  O-O {[%clk 0:02:49]} 9. O-O {[%clk 0:02:30]}  h6 {[%clk 0:02:43]} 10. h3 {[%clk 0:02:23]}  Nce7 {[%clk 0:02:36]} 11. Nc3 {[%clk 0:02:15]}  c6 {[%clk 0:02:17]} 12. Re1 {[%clk 0:02:15]}  Re8 {[%clk 0:02:01]} 13. Bd2 {[%clk 0:02:12]}  Be6 {[%clk 0:01:56]} 14. a3 {[%clk 0:01:57]}  Qd7 {[%clk 0:01:54]} 15. Ne4 {[%clk 0:01:50]}  Rad8 {[%clk 0:01:41]} 16. Rc1 {[%clk 0:01:36]}  Bf5 {[%clk 0:01:24]} 17. Qb3 {[%clk 0:01:20]}  Bxe4 {[%clk 0:01:12]} 18. Bxe4 {[%clk 0:01:13]}  Nf6 {[%clk 0:01:10]} 19. Bb1 {[%clk 0:01:07]}  Ned5 {[%clk 0:01:09]} 20. Ne5 {[%clk 0:01:03]}  Qc8 {[%clk 0:01:01]} 21. Qg3 {[%clk 0:01:02]}  Kf8 {[%clk 0:00:56]} 22. b4 {[%clk 0:00:47]}  a6 {[%clk 0:00:53]} 23. Qh4 {[%clk 0:00:43]}  Ng8 {[%clk 0:00:45]} 24. Qe4 {[%clk 0:00:27]}  Ndf6 {[%clk 0:00:42]} 25. Qc2 {[%clk 0:00:13]}  Ne7 {[%clk 0:00:30]} 26. Ba2 {[%clk 0:00:13]}  Ned5 {[%clk 0:00:29]} 27. g4 {[%clk 0:00:07]}  Bxe5 {[%clk 0:00:13]} 28. dxe5 {[%clk 0:00:07]}  Nxg4 {[%clk 0:00:13]} 29. hxg4 {[%clk 0:00:07]}  Qxg4+ {[%clk 0:00:13]} 30. Kf1 {[%clk 0:00:07]}  Qh3+ {[%clk 0:00:12]} 31. Kg1 {[%clk 0:00:07]}  Re6 {[%clk 0:00:10]} 32. f4 {[%clk 0:00:03]}  Qg3+ {[%clk 0:00:05]} 33. Kf1 {[%clk 0:00:02]}  Qf3+ {[%clk 0:00:05]} 34. Kg1 {[%clk 0:00:02]}  Rg6+ {[%clk 0:00:05]} 35. Qxg6 {[%clk 0:00:03]}  fxg6 {[%clk 0:00:05]} 36. e6 {[%clk 0:00:03]}  Ne7 {[%clk 0:00:04]} 37. Re3 {[%clk 0:00:02]}  Qg4+ {[%clk 0:00:03]} 38. Kf1 {[%clk 0:00:02]}  Rxd2 {[%clk 0:00:03]} 0-1


[Site "https://www.chess.com"]

[Event "Titled Tuesday Blitz April 05 Late 2022"]
[White "Roberson, Peter T"]
[Black "Yuan, Qingyu"]
[WhiteFideId "412384"]
[BlackFideId "8609772"]
[WhiteElo "2346"]
[BlackElo "2359"]
[Result "1-0"]
[Round "04"]
[TimeControl "180+1"]
[Date "2022.04.05"]
[WhiteClock "0:00:06"]
[BlackClock "0:00:05"]

1. e4 {[%clk 0:03:00]}  c6 {[%clk 0:03:00]} 2. Nf3 {[%clk 0:02:59]}  d5 {[%clk 0:03:00]} 3. exd5 {[%clk 0:03:00]}  cxd5 {[%clk 0:03:00]} 4. Ne5 {[%clk 0:03:01]}  Nc6 {[%clk 0:03:01]} 5. d4 {[%clk 0:03:01]}  e6 {[%clk 0:02:57]} 6. c3 {[%clk 0:02:58]}  Bd6 {[%clk 0:02:57]} 7. f4 {[%clk 0:02:57]}  Nge7 {[%clk 0:02:56]} 8. Bd3 {[%clk 0:02:57]}  O-O {[%clk 0:02:56]} 9. Nd2 {[%clk 0:02:58]}  f6 {[%clk 0:02:55]} 10. Nxc6 {[%clk 0:02:58]}  bxc6 {[%clk 0:02:53]} 11. Nf3 {[%clk 0:02:58]}  Qc7 {[%clk 0:02:48]} 12. g3 {[%clk 0:02:49]}  e5 {[%clk 0:02:39]} 13. dxe5 {[%clk 0:02:42]}  fxe5 {[%clk 0:02:39]} 14. Nxe5 {[%clk 0:02:41]}  Bxe5 {[%clk 0:02:26]} 15. fxe5 {[%clk 0:02:42]}  Qxe5+ {[%clk 0:02:27]} 16. Qe2 {[%clk 0:02:41]}  Qxe2+ {[%clk 0:02:12]} 17. Bxe2 {[%clk 0:02:35]}  Ng6 {[%clk 0:01:55]} 18. Be3 {[%clk 0:02:29]}  Bh3 {[%clk 0:01:54]} 19. O-O-O {[%clk 0:02:27]}  Rae8 {[%clk 0:01:53]} 20. Kd2 {[%clk 0:02:27]}  Rf7 {[%clk 0:01:44]} 21. Bd4 {[%clk 0:02:22]}  Ne5 {[%clk 0:01:40]} 22. Rde1 {[%clk 0:02:16]}  Rfe7 {[%clk 0:01:21]} 23. Bxe5 {[%clk 0:02:12]}  Rxe5 {[%clk 0:01:21]} 24. Bd3 {[%clk 0:02:13]}  Kf7 {[%clk 0:01:16]} 25. Rxe5 {[%clk 0:02:11]}  Rxe5 {[%clk 0:01:17]} 26. Re1 {[%clk 0:02:12]}  Rxe1 {[%clk 0:01:15]} 27. Kxe1 {[%clk 0:02:13]}  Kf6 {[%clk 0:01:12]} 28. Kd2 {[%clk 0:01:54]}  h6 {[%clk 0:01:12]} 29. b4 {[%clk 0:01:52]}  Ke5 {[%clk 0:01:11]} 30. Ke3 {[%clk 0:01:52]}  g5 {[%clk 0:01:07]} 31. a4 {[%clk 0:01:42]}  Bd7 {[%clk 0:01:05]} 32. a5 {[%clk 0:01:38]}  Bc8 {[%clk 0:01:05]} 33. Bc2 {[%clk 0:01:12]}  Bd7 {[%clk 0:00:56]} 34. Ba4 {[%clk 0:01:04]}  Be8 {[%clk 0:00:56]} 35. Bc2 {[%clk 0:00:58]}  Bd7 {[%clk 0:00:56]} 36. Bd1 {[%clk 0:00:51]}  Bf5 {[%clk 0:00:52]} 37. Be2 {[%clk 0:00:46]}  Bc2 {[%clk 0:00:50]} 38. Bg4 {[%clk 0:00:42]}  Bb3 {[%clk 0:00:48]} 39. Be2 {[%clk 0:00:38]}  Bc4 {[%clk 0:00:44]} 40. Bg4 {[%clk 0:00:34]}  Bb5 {[%clk 0:00:42]} 41. Bf3 {[%clk 0:00:33]}  Ba6 {[%clk 0:00:42]} 42. Bd1 {[%clk 0:00:32]}  Bb5 {[%clk 0:00:39]} 43. Bc2 {[%clk 0:00:32]}  Bf1 {[%clk 0:00:37]} 44. Ba4 {[%clk 0:00:31]}  Kd6 {[%clk 0:00:24]} 45. Kd4 {[%clk 0:00:30]}  Bc4 {[%clk 0:00:23]} 46. Bd1 {[%clk 0:00:29]}  Bf1 {[%clk 0:00:22]} 47. Bb3 {[%clk 0:00:29]}  Be2 {[%clk 0:00:19]} 48. c4 {[%clk 0:00:27]}  dxc4 {[%clk 0:00:17]} 49. Bxc4 {[%clk 0:00:28]}  Bf3 {[%clk 0:00:17]} 50. Bd3 {[%clk 0:00:27]}  Bh1 {[%clk 0:00:16]} 51. Be4 {[%clk 0:00:15]}  Bxe4 {[%clk 0:00:12]} 52. Kxe4 {[%clk 0:00:16]}  Ke6 {[%clk 0:00:09]} 53. Kd4 {[%clk 0:00:16]}  Kd6 {[%clk 0:00:09]} 54. g4 {[%clk 0:00:16]}  Kd7 {[%clk 0:00:03]} 55. Ke5 {[%clk 0:00:14]}  Kc7 {[%clk 0:00:02]} 56. Kf6 {[%clk 0:00:08]}  c5 {[%clk 0:00:02]} 57. bxc5 {[%clk 0:00:07]}  Kc6 {[%clk 0:00:02]} 58. Kg6 {[%clk 0:00:08]}  Kb5 {[%clk 0:00:02]} 59. Kxh6 {[%clk 0:00:05]}  Kxa5 {[%clk 0:00:03]} 60. Kxg5 {[%clk 0:00:04]}  Kb5 {[%clk 0:00:03]} 61. h4 {[%clk 0:00:04]}  a5 {[%clk 0:00:04]} 62. h5 {[%clk 0:00:05]}  a4 {[%clk 0:00:04]} 63. h6 {[%clk 0:00:05]}  a3 {[%clk 0:00:04]} 64. h7 {[%clk 0:00:06]}  a2 {[%clk 0:00:05]} 65. h8=Q {[%clk 0:00:06]}  Kxc5 {[%clk 0:00:05]} 66. Qb2 {[%clk 0:00:06]} 1-0


[Site "https://www.chess.com"]